Workbook

Sheet tips
A1: MALTIPS
A2: Er det en enkel måte å hoppe mellom sammendragsark for utgiftstrender og månedlige utgiftsdetaljer på?
A3: Hvis du vil gå raskt til en bestemt måneds utgifter, klikk den tilknyttede navigasjonskoblingen ovenfor diagrammet, for eksempel Jan.-navigasjonskoblingen i B2. Hvis du vil gå tilbake til regnearket for utgiftstrender, klikker du Sammendrag-navigasjonskoblingen i D1.
A4: Hvis du vil gå tilbake til tips-regnearket, velger du N2 i regnearket for sammendrag. Fra alle månedsregnearkene kan du velge E1.
A5: Hvordan legger jeg til en ny utgiftstype til utgiftssammendraget, eller nye månedlige utgifter?
A6: Utgiftssammendraget nedenfor diagrammet og utgiftsdetaljene for hver måned er Excel-tabeller. Hvis du vil legge til nye rader i en Excel-tabell, gjør du ett av følgende:
A7: =ROW(A1)&". Hvis tabellen ikke har en totalrad, begynn å skrive inn under tabellen, og den utvides automatisk når du trykker ENTER eller TAB." -> 1. Hvis tabellen ikke har en totalrad, begynn å skrive inn under tabellen, og den utvides automatisk når du trykker ENTER eller TAB.
A8: =ROW(A2)&". Plasser cellepekeren i den siste cellen over totalraden, for eksempel totalsummen for den siste utgiften, og trykk deretter TAB." -> 2. Plasser cellepekeren i den siste cellen over totalraden, for eksempel totalsummen for den siste utgiften, og trykk deretter TAB.
A9: =ROW(A3)&". Høyreklikk i tabellen og på hurtigmenyen, pek på Sett inn og klikk deretter Tabellrader over eller Tabellrader under." -> 3. Høyreklikk i tabellen og på hurtigmenyen, pek på Sett inn og klikk deretter Tabellrader over eller Tabellrader under.
A10: =ROW(A4)&". Plasserer musen på skaleringshåndtaket i tabellen i det nedre høyre hjørnet av tabellen, og dra for å øke antall tilgjengelige tabellrader." -> 4. Plasserer musen på skaleringshåndtaket i tabellen i det nedre høyre hjørnet av tabellen, og dra for å øke antall tilgjengelige tabellrader.
A11: Gå til Utgifter-kolonnen og angi utgiften i sammendrag-regnearket i ExpensESummary-tabellen.
A12: Legg til utgiftsbeløpet for hver utgiftstype i regnearket for den måneden utgiften gjelder.
A13: For eksempel: «Utgift 1» forekommer i månedene jan. til jun. og des.
A14: =ROW(A1)&". Utgift 1 angis i regnearket for sammendrag under Utgift i ExpenseSummary-tabellen (som tittel for utgiftstypen)" -> 1. Utgift 1 angis i regnearket for sammendrag under Utgift i ExpenseSummary-tabellen (som tittel for utgiftstypen)
A15: =ROW(A2)&". Angi beløpet for utgiften i det tilsvarende regnearket for hver måned utgiften oppstår i." -> 2. Angi beløpet for utgiften i det tilsvarende regnearket for hver måned utgiften oppstår i.
A16: =ROW(A3)&". Utgiftstypen fra regnearket ExpenseSummary oppretter en kategoriliste for kategorikolonnen i regnearket for hver måned." -> 3. Utgiftstypen fra regnearket ExpenseSummary oppretter en kategoriliste for kategorikolonnen i regnearket for hver måned.
A17: =ROW(A4)&". Bruk kategorilisten i kategorikolonnen til å velge den tilsvarende utgiftstypen for det angitte utgiftsbeløpet" -> 4. Bruk kategorilisten i kategorikolonnen til å velge den tilsvarende utgiftstypen for det angitte utgiftsbeløpet
A18: =ROW(A5)&". Hvis du vil legge til nye utgifter for en måned, legger du til en ny rad i ExpenseSummary-tabellen i regnearket for sammendrag, og deretter angir du tilsvarende utgiftsdetaljer i regnearket for måneden utgiftsdetaljene gjelder for." -> 5. Hvis du vil legge til nye utgifter for en måned, legger du til en ny rad i ExpenseSummary-tabellen i regnearket for sammendrag, og deretter angir du tilsvarende utgiftsdetaljer i regnearket for måneden utgiftsdetaljene gjelder for.

Sheet sammendrag
A1: UTGIFTSTRENDER
B2: Jan. | C2: Feb. | D2: Mar. | E2: Apr. | F2: Mai. | G2: Jun. | H2: Jul. | I2: Aug. | J2: Sep. | K2: Okt. | L2: Nov. | M2: Des. | N2: Tips
A4: Utgifter | B4: Jan. | C4: Feb. | D4: Mar. | E4: Apr. | F4: Mai | G4: Jun. | H4: Jul. | I4: Aug. | J4: Sep. | K4: Okt. | L4: Nov. | M4: Des. | N4: Totalt | O4: Trend
A5: Utgift 1 | B5: =SUMIFS(ExpJan.[Beløp],ExpJan.[Kategori],Utgiftssammendrag[[#This Row],[Utgifter]]) -> 33.00 | C5: =SUMIFS(ExpFeb.[Beløp],ExpFeb.[Kategori],Utgiftssammendrag[[#This Row],[Utgifter]]) -> 375.00 | D5: =SUMIFS(ExpMar.[Beløp],ExpMar.[Kategori],Utgiftssammendrag[[#This Row],[Utgifter]]) -> 33.00 | E5: =SUMIFS(ExpApr.[Beløp],ExpApr.[Kategori],Utgiftssammendrag[[#This Row],[Utgifter]]) -> 45.00 | F5: =SUMIFS(ExpMai.[Beløp],ExpMai.[Kategori],Utgiftssammendrag[[#This Row],[Utgifter]]) -> 375.00 | G5: =SUMIFS(ExpJun.[Beløp],ExpJun.[Kategori],Utgiftssammendrag[[#This Row],[Utgifter]]) -> 201.00 | H5: =SUMIFS(ExpJul.[Beløp],ExpJul.[Kategori],Utgiftssammendrag[[#This Row],[Utgifter]]) -> 0.00 | I5: =SUMIFS(ExpAug.[Beløp],ExpAug.[Kategori],Utgiftssammendrag[[#This Row],[Utgifter]]) -> 0.00 | J5: =SUMIFS(ExpSep.[Beløp],ExpSep.[Kategori],Utgiftssammendrag[[#This Row],[Utgifter]]) -> 0.00 | K5: =SUMIFS(ExpOkt.[Beløp],ExpOkt.[Kategori],Utgiftssammendrag[[#This Row],[Utgifter]]) -> 0.00 | L5: =SUMIFS(ExpNov.[Beløp],ExpNov.[Kategori],Utgiftssammendrag[[#This Row],[Utgifter]]) -> 0.00 | M5: =SUMIFS(ExpDes.[Beløp],ExpDes.[Kategori],Utgiftssammendrag[[#This Row],[Utgifter]]) -> 201.00 | N5: =SUM(Utgiftssammendrag[[#This Row],[Jan.]:[Des.]]) -> 1,263.00
A6: Utgift 2 | B6: =SUMIFS(ExpJan.[Beløp],ExpJan.[Kategori],Utgiftssammendrag[[#This Row],[Utgifter]]) -> 238.00 | C6: =SUMIFS(ExpFeb.[Beløp],ExpFeb.[Kategori],Utgiftssammendrag[[#This Row],[Utgifter]]) -> 238.00 | D6: =SUMIFS(ExpMar.[Beløp],ExpMar.[Kategori],Utgiftssammendrag[[#This Row],[Utgifter]]) -> 238.00 | E6: =SUMIFS(ExpApr.[Beløp],ExpApr.[Kategori],Utgiftssammendrag[[#This Row],[Utgifter]]) -> 123.00 | F6: =SUMIFS(ExpMai.[Beløp],ExpMai.[Kategori],Utgiftssammendrag[[#This Row],[Utgifter]]) -> 111.00 | G6: =SUMIFS(ExpJun.[Beløp],ExpJun.[Kategori],Utgiftssammendrag[[#This Row],[Utgifter]]) -> 98.00 | H6: =SUMIFS(ExpJul.[Beløp],ExpJul.[Kategori],Utgiftssammendrag[[#This Row],[Utgifter]]) -> 0.00 | I6: =SUMIFS(ExpAug.[Beløp],ExpAug.[Kategori],Utgiftssammendrag[[#This Row],[Utgifter]]) -> 0.00 | J6: =SUMIFS(ExpSep.[Beløp],ExpSep.[Kategori],Utgiftssammendrag[[#This Row],[Utgifter]]) -> 0.00 | K6: =SUMIFS(ExpOkt.[Beløp],ExpOkt.[Kategori],Utgiftssammendrag[[#This Row],[Utgifter]]) -> 0.00 | L6: =SUMIFS(ExpNov.[Beløp],ExpNov.[Kategori],Utgiftssammendrag[[#This Row],[Utgifter]]) -> 0.00 | M6: =SUMIFS(ExpDes.[Beløp],ExpDes.[Kategori],Utgiftssammendrag[[#This Row],[Utgifter]]) -> 440.00 | N6: =SUM(Utgiftssammendrag[[#This Row],[Jan.]:[Des.]]) -> 1,486.00
A7: Utgift 3 | B7: =SUMIFS(ExpJan.[Beløp],ExpJan.[Kategori],Utgiftssammendrag[[#This Row],[Utgifter]]) -> 110.00 | C7: =SUMIFS(ExpFeb.[Beløp],ExpFeb.[Kategori],Utgiftssammendrag[[#This Row],[Utgifter]]) -> 110.00 | D7: =SUMIFS(ExpMar.[Beløp],ExpMar.[Kategori],Utgiftssammendrag[[#This Row],[Utgifter]]) -> 110.00 | E7: =SUMIFS(ExpApr.[Beløp],ExpApr.[Kategori],Utgiftssammendrag[[#This Row],[Utgifter]]) -> 125.00 | F7: =SUMIFS(ExpMai.[Beløp],ExpMai.[Kategori],Utgiftssammendrag[[#This Row],[Utgifter]]) -> 333.00 | G7: =SUMIFS(ExpJun.[Beløp],ExpJun.[Kategori],Utgiftssammendrag[[#This Row],[Utgifter]]) -> 122.00 | H7: =SUMIFS(ExpJul.[Beløp],ExpJul.[Kategori],Utgiftssammendrag[[#This Row],[Utgifter]]) -> 0.00 | I7: =SUMIFS(ExpAug.[Beløp],ExpAug.[Kategori],Utgiftssammendrag[[#This Row],[Utgifter]]) -> 0.00 | J7: =SUMIFS(ExpSep.[Beløp],ExpSep.[Kategori],Utgiftssammendrag[[#This Row],[Utgifter]]) -> 0.00 | K7: =SUMIFS(ExpOkt.[Beløp],ExpOkt.[Kategori],Utgiftssammendrag[[#This Row],[Utgifter]]) -> 0.00 | L7: =SUMIFS(ExpNov.[Beløp],ExpNov.[Kategori],Utgiftssammendrag[[#This Row],[Utgifter]]) -> 0.00 | M7: =SUMIFS(ExpDes.[Beløp],ExpDes.[Kategori],Utgiftssammendrag[[#This Row],[Utgifter]]) -> 122.00 | N7: =SUM(Utgiftssammendrag[[#This Row],[Jan.]:[Des.]]) -> 1,032.00
A8: Utgift 4 | B8: =SUMIFS(ExpJan.[Beløp],ExpJan.[Kategori],Utgiftssammendrag[[#This Row],[Utgifter]]) -> 426.00 | C8: =SUMIFS(ExpFeb.[Beløp],ExpFeb.[Kategori],Utgiftssammendrag[[#This Row],[Utgifter]]) -> 84.00 | D8: =SUMIFS(ExpMar.[Beløp],ExpMar.[Kategori],Utgiftssammendrag[[#This Row],[Utgifter]]) -> 84.00 | E8: =SUMIFS(ExpApr.[Beløp],ExpApr.[Kategori],Utgiftssammendrag[[#This Row],[Utgifter]]) -> 426.00 | F8: =SUMIFS(ExpMai.[Beløp],ExpMai.[Kategori],Utgiftssammendrag[[#This Row],[Utgifter]]) -> 125.00 | G8: =SUMIFS(ExpJun.[Beløp],ExpJun.[Kategori],Utgiftssammendrag[[#This Row],[Utgifter]]) -> 187.00 | H8: =SUMIFS(ExpJul.[Beløp],ExpJul.[Kategori],Utgiftssammendrag[[#This Row],[Utgifter]]) -> 0.00 | I8: =SUMIFS(ExpAug.[Beløp],ExpAug.[Kategori],Utgiftssammendrag[[#This Row],[Utgifter]]) -> 0.00 | J8: =SUMIFS(ExpSep.[Beløp],ExpSep.[Kategori],Utgiftssammendrag[[#This Row],[Utgifter]]) -> 0.00 | K8: =SUMIFS(ExpOkt.[Beløp],ExpOkt.[Kategori],Utgiftssammendrag[[#This Row],[Utgifter]]) -> 0.00 | L8: =SUMIFS(ExpNov.[Beløp],ExpNov.[Kategori],Utgiftssammendrag[[#This Row],[Utgifter]]) -> 0.00 | M8: =SUMIFS(ExpDes.[Beløp],ExpDes.[Kategori],Utgiftssammendrag[[#This Row],[Utgifter]]) -> 187.00 | N8: =SUM(Utgiftssammendrag[[#This Row],[Jan.]:[Des.]]) -> 1,519.00
A9: Utgift 5 | B9: =SUMIFS(ExpJan.[Beløp],ExpJan.[Kategori],Utgiftssammendrag[[#This Row],[Utgifter]]) -> 54.00 | C9: =SUMIFS(ExpFeb.[Beløp],ExpFeb.[Kategori],Utgiftssammendrag[[#This Row],[Utgifter]]) -> 54.00 | D9: =SUMIFS(ExpMar.[Beløp],ExpMar.[Kategori],Utgiftssammendrag[[#This Row],[Utgifter]]) -> 109.00 | E9: =SUMIFS(ExpApr.[Beløp],ExpApr.[Kategori],Utgiftssammendrag[[#This Row],[Utgifter]]) -> 98.00 | F9: =SUMIFS(ExpMai.[Beløp],ExpMai.[Kategori],Utgiftssammendrag[[#This Row],[Utgifter]]) -> 33.00 | G9: =SUMIFS(ExpJun.[Beløp],ExpJun.[Kategori],Utgiftssammendrag[[#This Row],[Utgifter]]) -> 441.00 | H9: =SUMIFS(ExpJul.[Beløp],ExpJul.[Kategori],Utgiftssammendrag[[#This Row],[Utgifter]]) -> 0.00 | I9: =SUMIFS(ExpAug.[Beløp],ExpAug.[Kategori],Utgiftssammendrag[[#This Row],[Utgifter]]) -> 0.00 | J9: =SUMIFS(ExpSep.[Beløp],ExpSep.[Kategori],Utgiftssammendrag[[#This Row],[Utgifter]]) -> 0.00 | K9: =SUMIFS(ExpOkt.[Beløp],ExpOkt.[Kategori],Utgiftssammendrag[[#This Row],[Utgifter]]) -> 0.00 | L9: =SUMIFS(ExpNov.[Beløp],ExpNov.[Kategori],Utgiftssammendrag[[#This Row],[Utgifter]]) -> 0.00 | M9: =SUMIFS(ExpDes.[Beløp],ExpDes.[Kategori],Utgiftssammendrag[[#This Row],[Utgifter]]) -> 99.00 | N9: =SUM(Utgiftssammendrag[[#This Row],[Jan.]:[Des.]]) -> 888.00
A10: Totalt | B10: =SUBTOTAL(109,Utgiftssammendrag[Jan.]) -> 861.00 | C10: =SUBTOTAL(109,Utgiftssammendrag[Feb.]) -> 861.00 | D10: =SUBTOTAL(109,Utgiftssammendrag[Mar.]) -> 574.00 | E10: =SUBTOTAL(109,E5:E9) -> 817.00 | F10: 977.00 | G10: 1,049.00 | H10: 0.00 | I10: 0.00 | J10: 0.00 | K10: 0.00 | L10: 0.00 | M10: 1,049.00 | N10: 6,188.00

Sheet jan.
A1: UTGIFTER I JANUAR | D1: Sammendrag | E1: Tips
A2: Dato | B2: Kjøpsordrenummer | C2: Beløp | D2: Kategori | E2: Beskrivelse
A3: =DATE(YEAR(TODAY()),1,4) -> 2017-01-04 | B3: A-12345 | C3: 33.00 | D3: Utgift 1 | E3: Utstyr
A4: =DATE(YEAR(TODAY()),1,5) -> 2017-01-05 | B4: A-12346 | C4: 238.00 | D4: Utgift 2
C5: 342.00 | D5: Utgift 4
C6: 110.00 | D6: Utgift 3
C7: 84.00 | D7: Utgift 4
C8: 54.00 | D8: Utgift 5
A9: Totalt | C9: =SUBTOTAL(109,ExpJan.[Beløp]) -> 861.00

Sheet feb.
A1: UTGIFTER I FEBRUAR | D1: Sammendrag | E1: Tips
A2: Dato | B2: Kjøpsordrenummer | C2: Beløp | D2: Kategori | E2: Beskrivelse
A3: =DATE(YEAR(TODAY()),2,3) -> 2017-02-03 | B3: A-12345 | C3: 33.00 | D3: Utgift 1 | E3: Utstyr
A4: =DATE(YEAR(TODAY()),2,4) -> 2017-02-04 | B4: A-12346 | C4: 238.00 | D4: Utgift 2
C5: 342.00 | D5: Utgift 1
C6: 110.00 | D6: Utgift 3
C7: 84.00 | D7: Utgift 4
C8: 54.00 | D8: Utgift 5
A9: Totalt | C9: =SUBTOTAL(109,ExpFeb.[Beløp]) -> 861.00

Sheet mar.
A1: UTGIFTER I MARS | D1: Sammendrag | E1: Tips
A2: Dato | B2: Kjøpsordrenummer | C2: Beløp | D2: Kategori | E2: Beskrivelse
A3: =DATE(YEAR(TODAY()),3,5) -> 2017-03-05 | B3: A-12345 | C3: 33.00 | D3: Utgift 1 | E3: Utstyr
A4: =DATE(YEAR(TODAY()),3,6) -> 2017-03-06 | B4: A-12346 | C4: 238.00 | D4: Utgift 2
C5: 55.00 | D5: Utgift 5
C6: 110.00 | D6: Utgift 3
C7: 84.00 | D7: Utgift 4
C8: 54.00 | D8: Utgift 5
A9: Totalt | C9: =SUBTOTAL(109,ExpMar.[Beløp]) -> 574.00

Sheet apr.
A1: UTGIFTER I APRIL | D1: Sammendrag | E1: Tips
A2: Dato | B2: Kjøpsordrenummer | C2: Beløp | D2: Kategori | E2: Beskrivelse
A3: =DATE(YEAR(TODAY()),4,4) -> 2017-04-04 | B3: A-12345 | C3: 45.00 | D3: Utgift 1 | E3: Utstyr
A4: =DATE(YEAR(TODAY()),4,8) -> 2017-04-08 | B4: A-12346 | C4: 123.00 | D4: Utgift 2
C5: 342.00 | D5: Utgift 4
C6: 125.00 | D6: Utgift 3
C7: 84.00 | D7: Utgift 4
C8: 98.00 | D8: Utgift 5
A9: Totalt | C9: =SUBTOTAL(109,ExpApr.[Beløp]) -> 817.00

Sheet mai
A1: UTGIFTER I MAI | D1: Sammendrag | E1: Tips
A2: Dato | B2: Kjøpsordrenummer | C2: Beløp | D2: Kategori | E2: Beskrivelse
A3: =DATE(YEAR(TODAY()),5,3) -> 2017-05-03 | B3: A-12345 | C3: 33.00 | D3: Utgift 1 | E3: Utstyr
A4: =DATE(YEAR(TODAY()),5,8) -> 2017-05-08 | B4: A-12346 | C4: 111.00 | D4: Utgift 2
C5: 342.00 | D5: Utgift 1
C6: 333.00 | D6: Utgift 3
C7: 125.00 | D7: Utgift 4
C8: 33.00 | D8: Utgift 5
A9: Totalt | C9: =SUBTOTAL(109,ExpMai.[Beløp]) -> 977.00

Sheet jun.
A1: UTGIFTER I JUNI | D1: Sammendrag | E1: Tips
A2: Dato | B2: Kjøpsordrenummer | C2: Beløp | D2: Kategori | E2: Beskrivelse
A3: =DATE(YEAR(TODAY()),6,7) -> 2017-06-07 | B3: A-12345 | C3: 201.00 | D3: Utgift 1 | E3: Utstyr
A4: =DATE(YEAR(TODAY()),6,8) -> 2017-06-08 | B4: A-12346 | C4: 98.00 | D4: Utgift 2
C5: 342.00 | D5: Utgift 5
C6: 122.00 | D6: Utgift 3
C7: 187.00 | D7: Utgift 4
C8: 99.00 | D8: Utgift 5
A9: Totalt | C9: =SUBTOTAL(109,ExpJun.[Beløp]) -> 1,049.00

Sheet jul.
A1: UTGIFTER I JULI | D1: Sammendrag | E1: Tips
A2: Dato | B2: Kjøpsordrenummer | C2: Beløp | D2: Kategori | E2: Beskrivelse
A3: =DATE(YEAR(TODAY()),7,9) -> 2017-07-09 | B3: A-12345 | D3: Utgift 1 | E3: Utstyr
A4: =DATE(YEAR(TODAY()),7,14) -> 2017-07-14 | B4: A-12346 | D4: Utgift 2
D5: Utgift 2
D6: Utgift 3
D7: Utgift 4
D8: Utgift 5
A9: Totalt | C9: =SUBTOTAL(109,ExpJul.[Beløp]) -> 0.00

Sheet aug.
A1: UTGIFTER I AUGUST | D1: Sammendrag | E1: Tips
A2: Dato | B2: Kjøpsordrenummer | C2: Beløp | D2: Kategori | E2: Beskrivelse
A3: =DATE(YEAR(TODAY()),8,8) -> 2017-08-08 | B3: A-12345 | D3: Utgift 1 | E3: Utstyr
A4: =DATE(YEAR(TODAY()),8,9) -> 2017-08-09 | B4: A-12346 | D4: Utgift 2
D5: Utgift 2
D6: Utgift 3
D7: Utgift 4
D8: Utgift 5
A9: Totalt | C9: =SUBTOTAL(109,ExpAug.[Beløp]) -> 0.00

Sheet sep.
A1: UTGIFTER I SEPTEMBER | D1: Sammendrag | E1: Tips
A2: Dato | B2: Kjøpsordrenummer | C2: Beløp | D2: Kategori | E2: Beskrivelse
A3: =DATE(YEAR(TODAY()),9,9) -> 2017-09-09 | B3: A-12345 | D3: Utgift 1 | E3: Utstyr
A4: =DATE(YEAR(TODAY()),9,15) -> 2017-09-15 | B4: A-12346 | D4: Utgift 2
D5: Utgift 2
D6: Utgift 3
D7: Utgift 4
D8: Utgift 5
A9: Totalt | C9: =SUBTOTAL(109,ExpSep.[Beløp]) -> 0.00

Sheet okt.
A1: UTGIFTER I OKTOBER | D1: Sammendrag | E1: Tips
A2: Dato | B2: Kjøpsordrenummer | C2: Beløp | D2: Kategori | E2: Beskrivelse
A3: =DATE(YEAR(TODAY()),10,10) -> 2017-10-10 | B3: A-12345 | D3: Utgift 1 | E3: Utstyr
A4: =DATE(YEAR(TODAY()),10,21) -> 2017-10-21 | B4: A-12346 | D4: Utgift 2
D5: Utgift 2
D6: Utgift 3
D7: Utgift 4
D8: Utgift 5
A9: Totalt | C9: =SUBTOTAL(109,ExpOkt.[Beløp]) -> 0.00

Sheet nov.
A1: UTGIFTER I NOVEMBER | D1: Sammendrag | E1: Tips
A2: Dato | B2: Kjøpsordrenummer | C2: Beløp | D2: Kategori | E2: Beskrivelse
A3: =DATE(YEAR(TODAY()),11,14) -> 2017-11-14 | B3: A-12345 | D3: Utgift 1 | E3: Utstyr
A4: =DATE(YEAR(TODAY()),11,21) -> 2017-11-21 | B4: A-12346 | D4: Utgift 2
D5: Utgift 2
D6: Utgift 3
D7: Utgift 4
D8: Utgift 5
A9: Totalt | C9: =SUBTOTAL(109,ExpNov.[Beløp]) -> 0.00

Sheet des.
A1: UTGIFTER I DESEMBER | D1: Sammendrag | E1: Tips
A2: Dato | B2: Kjøpsordrenummer | C2: Beløp | D2: Kategori | E2: Beskrivelse
A3: =DATE(YEAR(TODAY()),12,2) -> 2017-12-02 | B3: A-12345 | C3: 201.00 | D3: Utgift 1 | E3: Utstyr
A4: =DATE(YEAR(TODAY()),12,24) -> 2017-12-24 | B4: A-12346 | C4: 98.00 | D4: Utgift 2
C5: 342.00 | D5: Utgift 2
C6: 122.00 | D6: Utgift 3
C7: 187.00 | D7: Utgift 4
C8: 99.00 | D8: Utgift 5
A9: Totalt | C9: =SUBTOTAL(109,ExpDes.[Beløp]) -> 1,049.00
